bitfinex/quotes_ETHUSD_20251124
["timestamp","ask_amount","ask_price","bid_price","bid_amount"]
[1763992807325,0.6384,2816.8,2816.1,0.2117]
[1763992807527,1.1091,2816.8,2816.1,0.1117]
[1763992807869,0.6384,2816.8,2816.1,0.2117]
[1763992808224,1.1091,2816.8,2816.1,0.1117]
[1763992808743,0.4707,2816.7,2816.1,0.1117]
[1763992809176,0.4707,2816.7,2815.8,0.226]
[1763992809358,0.4707,2816.7,2815.9,0.1]
[1763992809557,0.4707,2816.7,2815.8,0.1]
[1763992809859,0.4707,2816.7,2815.7,0.226]
[1763992810063,0.4707,2816.7,2815.7,0.1]
[1763992810264,0.4707,2816.7,2815.7,0.226]
[1763992810478,0.4707,2816.7,2815.5,0.7801]
[1763992810767,0.4707,2816.7,2815.5,0.326]
[1763992810768,1.19629411,2816.7,2815.5,0.326]
[1763992811134,1.19629411,2816.7,2814.5,0.1117]
[1763992811135,0.4567,2815.6,2814.5,0.1117]
[1763992811334,0.4567,2815.6,2814.0,0.5779]
[1763992811335,0.4374,2815.4,2814.0,0.5779]
[1763992811544,0.4374,2815.4,2814.6,0.1]
[1763992811763,0.4374,2815.4,2814.8,0.1]
[1763992812326,0.4374,2815.4,2814.7,0.1]
[1763992812536,0.4707,2815.3,2814.3,0.4541]
[1763992812730,0.4707,2815.3,2814.5,0.1]
[1763992812927,0.4707,2815.3,2814.6,0.1]
[1763992813163,0.6959,2815.7,2814.9,0.1]
[1763992813564,0.4707,2815.6,2814.8,0.1]
[1763992813765,0.4707,2815.6,2815.5,0.001]
[1763992814272,0.9274,2815.6,2815.5,0.001]
[1763992815960,1.332904,2815.6,2815.5,0.001]
[1763992816691,1.47531838,2815.6,2815.5,0.001]
[1763992816996,0.59911438,2815.6,2815.5,0.001]
[1763992817195,0.4567,2815.6,2815.5,0.001]
[1763992817383,0.9274,2815.6,2815.5,0.001]
[1763992819209,0.61308701,2816.0,2815.5,0.001]
[1763992819390,0.4567,2815.6,2815.5,0.001]
[1763992819887,0.9274,2815.6,2815.5,0.001]
[1763992820109,1.1534,2815.6,2815.5,0.001]
[1763992820266,0.4707,2815.9,2815.5,0.001]
[1763992820667,0.4707,2815.8,2815.5,0.001]
[1763992821110,0.226,2816.0,2815.5,0.001]
[1763992821265,0.6967,2816.0,2815.5,0.001]
[1763992821764,0.4707,2815.9,2815.5,0.001]
[1763992822871,0.4625,2815.6,2815.5,0.001]
[1763992824487,0.9332,2815.6,2815.5,0.001]
[1763992825913,0.226,2816.0,2815.5,0.4551]
[1763992826078,0.6967,2816.0,2815.5,0.4551]
[1763992826610,0.4707,2815.9,2815.5,0.4551]
[1763992826979,0.226,2816.0,2815.5,0.4551]
[1763992827990,0.6967,2816.0,2815.5,0.4551]
[1763992828191,1.44677819,2816.0,2815.5,0.4551]
[1763992828395,1.22077819,2815.9,2815.5,0.001]
[1763992828618,0.75007819,2815.8,2815.5,0.001]
[1763992828915,0.4707,2815.8,2815.5,0.001]
[1763992829114,0.226,2816.0,2815.5,0.001]
[1763992829326,1.70661864,2815.9,2815.5,0.001]
[1763992829538,0.75339993,2815.8,2815.5,0.101]
[1763992829734,1.99959501,2816.1,2815.5,0.101]
[1763992829735,0.75339993,2815.7,2815.5,0.4551]
[1763992830032,0.95321871,2816.3,2816.0,0.4541]
[1763992830332,0.75484582,2816.2,2816.0,0.1]
[1763992830505,1.5000009,2816.6,2815.5,0.4551]
[1763992830506,0.95321871,2816.5,2815.5,0.227]
[1763992830707,0.226,2816.6,2816.1,0.4541]
[1763992830934,0.226,2816.6,2816.2,0.1117]
[1763992831436,0.75667419,2816.5,2816.2,0.1117]
[1763992831632,0.75667419,2816.4,2816.2,0.1117]
[1763992831793,1.86051282,2816.8,2816.2,0.1117]
[1763992831794,2.33121282,2816.8,2816.2,0.1117]
[1763992831998,1.22738057,2816.7,2815.6,1.18169411]
[1763992832322,0.95321871,2816.5,2815.9,0.1]
[1763992832518,0.75668057,2816.4,2815.9,0.1]
[1763992832718,0.75668057,2816.3,2815.9,0.5541]
[1763992833040,0.75668057,2816.2,2816.0,0.1]
[1763992833222,0.75668057,2816.1,2816.0,0.1]
[1763992833532,0.75668057,2816.1,2816.0,0.5541]
[1763992833706,0.95321871,2816.6,2816.0,1.0199]
[1763992833912,0.75994309,2816.5,2816.3,0.1]
[1763992834238,0.95321871,2816.7,2816.3,0.1]
[1763992834239,0.75994309,2816.4,2816.3,0.1]
[1763992834612,0.75994309,2816.4,2816.3,0.5541]
[1763992834933,0.75994309,2816.4,2816.3,1.0082]
[1763992835134,0.75994309,2816.4,2816.3,0.4541]
[1763992836517,0.95321871,2816.9,2816.3,1.0082]
[1763992836716,0.76085176,2816.8,2816.4,0.4541]
[1763992836917,0.76005176,2816.7,2816.6,0.5541]
[1763992837134,0.76005176,2816.7,2816.6,0.1]
[1763992837340,0.76005176,2816.7,2816.6,0.5541]
[1763992838029,0.76005176,2816.7,2816.6,0.4541]
[1763992838642,0.76005176,2816.7,2816.4,0.1]
[1763992838848,0.1801,2816.9,2816.4,0.4541]
[1763992839051,0.1801,2816.9,2816.5,0.1]
[1763992839241,0.6508,2816.9,2816.4,0.5541]
[1763992839550,0.6508,2816.9,2816.0,0.1117]
[1763992839725,1.60401871,2816.9,2816.2,0.1]
[1763992839928,1.60401871,2816.9,2816.0,1.1199]
[1763992840135,1.60401871,2816.9,2816.2,0.1]
[1763992840319,0.95321871,2817.1,2816.8,0.4541]
[1763992840652,0.95321871,2817.2,2816.8,0.4541]
[1763992840851,0.95321871,2817.2,2816.7,0.1]
[1763992841157,0.95521871,2817.3,2816.7,0.1]
[1763992841526,0.95521871,2817.3,2816.8,0.1]
[1763992842221,0.002,2817.3,2816.8,0.1]
[1763992842720,0.4727,2817.3,2816.8,0.1]
[1763992843247,0.002,2817.3,2816.8,0.1]
[1763992843446,0.002,2817.3,2816.8,0.5541]
[1763992843837,0.002,2817.3,2816.8,0.4541]
[1763992844380,0.002,2817.3,2816.9,0.1]
[1763992844922,0.002,2817.3,2816.6,0.4541]
[1763992845121,0.002,2817.3,2816.8,0.1]
[1763992845531,0.002,2817.3,2816.9,0.1]
[1763992845851,0.002,2817.3,2816.3,1.06727572]
[1763992846150,0.4625,2816.9,2816.5,0.1]
[1763992846352,0.4707,2817.2,2816.4,0.226]
[1763992846557,0.4707,2817.2,2816.8,0.4503]
[1763992846723,0.4707,2817.2,2816.4,0.6801]
[1763992846918,0.4707,2817.2,2816.7,0.1]
[1763992847332,0.002,2817.3,2816.7,0.1]
[1763992847539,0.4575,2817.2,2816.5,0.1]
[1763992847734,0.6525,2816.6,2815.5,0.5551]
[1763992848052,0.6525,2816.6,2815.8,0.1]
[1763992848053,0.438,2816.4,2815.8,0.1]
[1763992848442,0.8955,2816.4,2815.6,0.5551]
[1763992848970,0.8955,2816.4,2815.7,0.1]
[1763992849867,0.8955,2816.4,2815.6,0.001]
[1763992849868,0.4575,2816.4,2815.6,0.001]
[1763992850172,0.6902,2816.6,2815.9,0.1]
[1763992850471,0.76100146,2816.5,2815.9,0.1]
[1763992850769,0.6902,2816.6,2815.9,0.1]
[1763992850951,1.25337294,2816.5,2815.9,0.1]
[1763992851158,1.25337294,2816.5,2815.8,0.1]
[1763992851159,0.002,2816.4,2815.8,0.1]
[1763992851936,0.002,2816.4,2815.7,0.5541]
[1763992852132,0.002,2816.4,2815.7,0.4541]
[1763992852331,0.002,2816.4,2815.8,0.1]
[1763992852771,0.002,2816.4,2815.7,0.5541]
[1763992852938,0.002,2816.4,2815.8,0.1]
[1763992853467,0.002,2816.4,2815.7,0.4541]
[1763992853671,0.002,2816.4,2815.7,0.5541]
[1763992854078,0.4846,2815.8,2815.6,0.001]
[1763992854278,0.3739,2815.7,2815.6,0.001]
[1763992855174,0.8663,2815.7,2815.6,0.001]
[1763992856064,0.3739,2815.7,2815.6,0.001]
[1763992856262,0.4924,2816.0,2815.6,0.001]
[1763992856464,1.25382249,2816.0,2815.6,0.001]
[1763992856782,0.4846,2815.7,2815.6,0.001]
[1763992857187,0.4924,2815.9,2815.6,0.001]
[1763992857478,0.4846,2815.7,2815.6,0.001]
[1763992857860,0.977,2815.7,2815.6,0.001]
[1763992859202,0.72559411,2816.1,2815.6,0.4551]
[1763992859499,0.4846,2815.7,2815.6,0.001]
[1763992859847,0.977,2815.7,2815.6,0.001]
[1763992860385,0.97522446,2815.7,2815.6,0.001]
[1763992860750,4.1937,2816.0,2815.6,0.4577]
[1763992860954,0.44642104,2817.2,2815.6,0.4577]
[1763992860955,0.4944,2816.4,2815.6,0.5577]
[1763992861400,0.4944,2816.4,2815.8,0.1]
[1763992861580,0.4944,2816.4,2815.6,0.4577]
[1763992861581,0.002,2816.4,2815.9,0.1]
[1763992861888,0.002,2816.4,2816.0,0.1]
[1763992862074,0.002,2816.4,2815.7,0.49221514]
[1763992862384,0.002,2816.4,2815.9,0.1]
[1763992862995,0.4944,2816.4,2815.7,0.1]
[1763992863237,0.4944,2816.4,2815.6,0.001]
[1763992863528,0.4944,2816.4,2815.7,0.1]
[1763992863915,0.4944,2816.4,2815.8,0.1]
[1763992864129,0.4944,2816.4,2815.6,0.001]
[1763992864541,0.4846,2815.7,2815.6,0.001]
[1763992864737,0.977,2815.7,2815.6,0.001]
[1763992865032,0.4846,2815.7,2815.6,0.001]
[1763992865547,0.4924,2816.1,2815.6,0.001]
[1763992866439,0.4846,2815.7,2815.6,0.001]
[1763992867430,0.977,2815.7,2815.6,0.001]
[1763992868620,0.7184,2816.0,2815.6,0.001]
[1763992868820,0.4924,2815.9,2815.6,0.001]
[1763992869406,0.4846,2815.7,2815.6,0.001]
[1763992870142,0.4924,2815.9,2815.6,0.001]
[1763992870952,0.4846,2815.7,2815.6,0.001]
[1763992871357,0.977,2815.7,2815.6,0.001]
[1763992871711,0.4846,2815.7,2815.6,0.001]
[1763992872050,0.7184,2816.0,2815.6,0.001]
[1763992872255,0.4846,2815.7,2815.6,0.001]
[1763992872454,0.4924,2815.9,2815.6,0.001]
[1763992872661,0.226,2816.0,2815.6,0.001]
[1763992872837,0.4924,2815.9,2815.6,0.001]
[1763992873726,0.4846,2815.7,2815.6,0.001]
[1763992876943,0.977,2815.7,2815.6,0.001]
[1763992877149,0.4815,2815.4,2813.9,0.1117]
[1763992877333,0.3679,2814.5,2813.9,0.1117]
[1763992877537,0.6648,2814.1,2813.7,0.11194679]
[1763992877741,0.4846,2813.8,2813.7,0.11194679]
[1763992877907,1.05165431,2813.8,2813.7,0.11194679]
[1763992878112,1.54405431,2813.8,2813.7,0.11194679]
[1763992878312,0.977,2813.8,2813.7,0.11194679]
[1763992878940,1.70259411,2813.8,2813.7,0.11194679]
[1763992879345,0.977,2813.8,2813.7,0.11194679]
[1763992880348,9.3449688,2813.8,2813.7,0.11194679]
[1763992880661,8.77791449,2813.8,2813.7,0.11194679]
[1763992881014,1.70259411,2813.8,2813.7,0.11194679]
[1763992881314,2.10809811,2813.8,2813.7,0.11194679]
[1763992882553,1.70259411,2813.8,2813.7,0.11194679]
[1763992884165,2.26964842,2813.8,2813.7,0.11194679]
[1763992884574,1.70179411,2813.8,2813.7,0.11194679]
[1763992884767,1.20939411,2813.8,2813.7,0.11194679]
[1763992885081,1.67189411,2813.8,2813.7,0.11194679]
[1763992885794,0.72559411,2813.8,2813.7,0.11194679]
[1763992885981,0.226,2814.0,2813.7,0.57344679]
[1763992886187,0.6885,2814.0,2813.7,0.11194679]
[1763992886765,0.226,2814.0,2813.7,0.11194679]
[1763992887091,0.4849,2813.8,2813.7,0.11194679]
[1763992887460,0.226,2814.0,2813.7,0.11194679]
[1763992888452,1.29264842,2814.6,2813.7,0.11194679]
[1763992888453,0.4184,2814.4,2813.9,0.4615]
[1763992889177,0.8809,2814.4,2813.9,0.4615]
[1763992889490,0.8809,2814.4,2813.7,0.11194679]
[1763992890008,0.4184,2814.4,2813.7,0.11194679]
[1763992890379,0.8809,2814.4,2813.7,0.11194679]
[1763992890581,0.4849,2813.8,2813.7,0.11194679]
[1763992890774,1.1734,2813.8,2813.7,0.11194679]
[1763992892010,0.7109,2813.8,2813.7,0.11194679]
[1763992892609,1.1734,2813.8,2813.7,0.11194679]
[1763992892989,0.7109,2813.8,2813.7,0.11194679]
[1763992893332,1.4207739,2813.8,2813.7,0.11194679]
[1763992893483,1.1734,2813.8,2813.7,0.11194679]
[1763992898338,0.227,2813.8,2813.7,0.11194679]
[1763992898531,0.91799411,2814.4,2813.7,1.03494679]
[1763992898532,0.75608245,2814.2,2813.7,1.03494679]
[1763992898731,0.4606,2814.6,2813.7,1.03494679]
[1763992898732,0.227,2814.3,2814.0,0.4615]
[1763992899456,0.227,2814.3,2814.1,0.1198]
[1763992899670,0.1845,2815.0,2814.2,0.4615]
[1763992899956,0.227,2814.9,2814.5,0.4615]
[1763992900435,0.15595205,2814.9,2814.8,0.4615]
[1763992900750,0.15595205,2814.9,2814.3,0.1]
[1763992901032,0.15595205,2814.9,2814.2,0.4615]
[1763992901221,0.15595205,2814.9,2814.8,0.4615]
[1763992901434,0.002,2815.3,2814.8,0.4615]
[1763992901635,0.002,2815.3,2815.2,0.4615]
[1763992901942,0.002,2815.3,2815.2,0.5761]
[1763992902246,0.002,2815.3,2815.2,1.0376]
[1763992902447,0.002,2815.3,2815.2,0.5761]
[1763992903201,0.002,2815.3,2815.0,0.1146]
[1763992903202,0.4597,2815.3,2814.7,0.1146]
[1763992904499,0.226,2815.2,2814.7,0.1146]
[1763992904714,0.226,2815.2,2814.4,0.1146]
[1763992905047,0.6866,2815.2,2814.4,0.1146]
[1763992905766,0.226,2815.2,2814.5,0.4615]
[1763992906272,0.226,2815.2,2814.6,0.1]
[1763992906757,0.226,2815.2,2814.4,0.1146]
[1763992906912,0.226,2815.2,2814.4,0.5761]
[1763992907120,0.226,2815.2,2814.4,0.6761]
[1763992907457,0.226,2815.2,2814.4,0.5761]
[1763992907839,0.228,2815.2,2814.4,0.5761]
[1763992908219,0.6878,2815.2,2814.4,0.1146]
[1763992908641,0.4606,2815.1,2814.4,0.1146]
[1763992909146,0.2272,2815.2,2814.4,0.1146]
[1763992909347,0.4606,2815.1,2814.4,0.1146]
[1763992909552,0.4606,2815.1,2814.2,0.1146]
[1763992911117,0.4606,2815.1,2813.7,0.11194679]
[1763992911118,0.6529,2814.3,2813.7,0.11194679]
[1763992911333,0.226,2814.4,2813.7,0.11194679]
[1763992911532,0.226,2814.4,2814.3,0.5787]
[1763992911753,0.226,2814.8,2814.3,0.5787]
[1763992911951,0.226,2814.8,2814.3,1.0402]
[1763992912166,0.226,2814.8,2814.3,0.5787]
[1763992912535,0.226,2814.8,2814.0,0.4615]
[1763992912536,0.7021,2814.8,2814.1,0.1172]
[1763992914441,0.7021,2814.8,2813.9,0.1]
[1763992914668,0.7021,2814.8,2813.7,0.57344679]
[1763992914881,0.7021,2814.8,2813.9,0.1]
[1763992914882,0.226,2814.8,2813.9,0.1]
[1763992915186,0.226,2814.8,2814.1,0.1]
[1763992915567,0.226,2814.8,2814.2,0.1172]
[1763992917959,0.226,2814.8,2813.7,0.11194679]
[1763992917960,0.4937,2814.3,2813.7,0.11194679]
[1763992918161,0.3601,2814.2,2813.7,0.11194679]
[1763992918549,0.5861,2814.2,2813.7,0.11194679]
[1763992918754,7.61742038,2813.8,2813.7,0.11194679]
[1763992918970,1.27892826,2814.1,2813.7,0.11194679]
[1763992919143,0.227,2814.1,2813.7,0.57324679]
[1763992919473,0.227,2814.1,2813.7,0.11194679]
[1763992919695,0.4937,2813.8,2813.7,0.11194679]
[1763992920297,0.49085763,2813.8,2813.7,0.11194679]
[1763992920891,0.227,2814.1,2813.7,0.57324679]
[1763992921067,0.4788,2814.0,2813.7,0.11194679]
[1763992921267,0.4937,2813.8,2813.7,0.11194679]
[1763992921471,0.4937,2813.8,2813.6,0.001]
[1763992921671,2.42867209,2813.7,2812.1,0.4633]
[1763992922000,2.42867209,2813.7,2811.5,0.1146]
[1763992922001,7.07532038,2812.6,2811.5,0.1146]
[1763992922172,0.227,2812.5,2811.5,0.1146]
[1763992922378,0.227,2812.5,2811.6,0.4633]
[1763992922794,0.7058,2812.5,2811.5,0.2146]
[1763992922996,0.7058,2812.5,2811.5,0.1146]
[1763992923200,0.4788,2812.4,2811.5,0.1146]
[1763992923684,1.08462826,2812.3,2811.3,0.1146]
[1763992923883,0.4788,2812.4,2811.3,0.1146]
[1763992924083,0.4788,2812.3,2811.3,0.1146]
[1763992924503,7.07532038,2812.6,2811.3,0.6779]
[1763992924796,0.227,2812.2,2811.6,0.1]
[1763992925114,0.227,2812.2,2811.6,0.5633]
[1763992925309,0.7058,2812.2,2811.3,0.1146]
[1763992925683,0.4788,2812.1,2811.3,0.1146]
[1763992926007,0.227,2812.2,2811.3,0.1146]
[1763992926207,0.227,2812.2,2811.2,0.1146]
[1763992926208,0.4788,2812.1,2811.2,0.1146]
[1763992926384,7.07532038,2812.0,2811.5,0.001]
[1763992926583,0.6576,2811.6,2811.5,0.001]
[1763992927211,0.227,2811.7,2811.5,0.001]
[1763992927714,0.9725,2811.6,2811.5,0.001]
[1763992930315,1.50331661,2811.6,2811.5,0.001]
[1763992930513,0.9725,2811.6,2811.5,0.001]
[1763992931020,0.4937,2811.6,2811.5,0.001]
[1763992931383,0.9725,2811.6,2811.5,0.001]
[1763992931825,0.227,2811.7,2811.5,0.001]
[1763992932002,0.705,2811.7,2811.5,0.001]
[1763992932207,0.4937,2811.6,2811.5,0.001]
[1763992932405,0.9725,2811.6,2811.5,0.001]
[1763992932985,0.95179411,2811.7,2811.5,0.001]
[1763992932986,0.2262,2811.7,2811.5,0.001]
[1763992935240,0.4937,2811.6,2811.5,0.001]
[1763992935746,0.9725,2811.6,2811.5,0.001]
[1763992936336,8.34738591,2811.6,2811.2,0.001]
[1763992936534,0.72559411,2811.2,2809.7,0.4633]
[1763992936850,6.6492918,2810.8,2809.4,0.1]
[1763992937053,6.6492918,2810.8,2809.1,0.1154]
[1763992937054,6.6492918,2810.0,2809.1,0.1154]
[1763992937206,6.8772918,2810.0,2809.1,0.1154]
[1763992937415,0.228,2810.0,2809.2,0.4633]
[1763992938333,6.8772918,2810.0,2809.2,0.4633]
[1763992938544,0.228,2810.0,2809.2,0.5633]
[1763992939161,0.228,2810.0,2809.2,0.4633]
[1763992939451,0.1943,2809.9,2809.1,0.2154]
[1763992939652,0.1943,2809.9,2809.2,0.1]
[1763992939808,0.1943,2809.9,2809.1,0.5797]
[1763992940006,0.1943,2809.9,2809.1,0.1154]
[1763992940210,0.1943,2809.9,2808.7,0.1172]
[1763992940211,1.40559411,2809.9,2808.7,0.1172]
[1763992940535,0.4857,2809.8,2808.7,0.1172]
[1763992941336,0.4857,2809.8,2808.4,0.1172]
[1763992941337,6.6492918,2809.5,2808.4,0.1172]
[1763992941648,0.228,2809.4,2808.4,0.5815]
[1763992941950,0.228,2809.4,2808.5,0.1]
[1763992942152,0.228,2809.4,2808.5,0.5643]
[1763992942383,0.4857,2809.3,2808.2,0.1]
[1763992942583,0.4857,2809.3,2807.9,3.67538451]
[1763992942584,0.1889,2808.6,2807.9,0.11402131]
[1763992942737,0.228,2808.5,2807.9,0.11402131]
[1763992943143,0.4857,2808.4,2807.9,0.11402131]
[1763992943370,0.4815,2808.0,2807.9,0.11402131]
[1763992943843,0.7095,2808.0,2807.9,0.11402131]
[1763992944044,1.1952,2808.0,2807.9,0.11402131]
[1763992944456,0.405504,2807.9,2806.3,0.18553642]
[1763992944659,0.405504,2807.9,2805.5,0.4643]
[1763992944660,6.6492918,2806.8,2805.5,0.4643]
[1763992944858,0.1889,2807.1,2805.5,0.4643]
[1763992944859,0.228,2806.7,2805.5,0.4643]
[1763992945044,0.228,2806.7,2805.8,0.1]
[1763992945243,0.228,2806.7,2805.0,7.24471513]
[1763992945244,0.4857,2806.6,2805.2,0.4643]
[1763992945438,0.4857,2806.6,2805.6,0.1]
[1763992945642,0.4857,2806.6,2805.2,0.4643]
[1763992945952,0.4857,2806.6,2805.5,0.1]
[1763992946153,0.4857,2806.6,2805.0,0.1146]
[1763992946154,0.72559411,2806.5,2805.0,0.1146]
[1763992946555,0.228,2806.7,2805.1,0.4643]
[1763992946768,0.4857,2807.4,2806.6,0.4643]
[1763992946968,0.4857,2808.0,2807.3,0.1167]
[1763992947142,0.4857,2808.0,2806.7,0.4643]
[1763992947343,0.4857,2808.0,2806.4,0.1163]
[1763992947344,6.6492918,2807.9,2806.4,0.1163]
[1763992947559,6.6492918,2807.5,2806.4,0.1163]
[1763992947746,6.8782918,2807.5,2806.4,0.1163]
[1763992947944,0.229,2807.5,2806.9,0.1]
[1763992948144,0.229,2807.5,2806.4,0.4643]
[1763992948145,6.6492918,2807.4,2806.4,0.4643]
[1763992948360,0.7147,2807.5,2806.4,0.4643]
[1763992948540,0.229,2807.5,2806.4,0.4643]
[1763992948745,0.229,2807.5,2806.9,0.1]
[1763992948978,0.229,2807.9,2806.7,0.1]
[1763992949281,0.4857,2807.8,2806.8,0.1]
[1763992949452,0.4857,2807.8,2806.9,0.1]
[1763992949872,0.229,2807.9,2807.0,0.1]
[1763992950264,0.229,2807.9,2807.1,0.1167]
[1763992951101,0.229,2807.9,2807.2,0.4643]
[1763992951306,0.1889,2808.6,2807.8,0.4643]
[1763992951469,0.1889,2808.6,2807.2,4.02655304]
[1763992951470,0.229,2808.4,2807.2,0.4643]
[1763992951676,0.229,2808.4,2807.5,0.1]
[1763992951873,0.229,2808.4,2807.6,0.1]
[1763992952201,0.229,2808.4,2807.2,4.02654917]
[1763992952416,0.229,2808.4,2807.5,0.1]
[1763992952697,0.6746,2808.6,2807.9,0.1]
[1763992953272,0.1889,2808.6,2807.5,4.02616479]
[1763992953604,0.229,2808.8,2808.2,0.1]
[1763992953810,0.1889,2808.9,2808.3,0.1]
[1763992954104,0.1889,2808.9,2807.7,0.869804]
[1763992954464,0.1889,2808.9,2807.8,0.4643]
[1763992954790,0.1889,2808.9,2808.1,0.1]
[1763992954991,0.1889,2808.9,2807.6,0.4643]
[1763992955299,0.1889,2808.9,2808.0,0.1]
[1763992955673,0.1881,2808.9,2808.1,0.2146]
[1763992955876,0.1881,2808.9,2808.1,0.1146]
[1763992956216,0.94477288,2809.7,2808.2,0.1]
[1763992956414,1.45399718,2809.9,2808.1,0.5797]
[1763992956415,0.1889,2809.4,2808.5,0.1]
[1763992956709,0.1889,2809.4,2808.6,0.1]
[1763992956866,0.1889,2809.4,2808.7,0.1]
[1763992957309,0.1889,2809.4,2807.6,10.6852514]
[1763992957310,7.1349918,2809.3,2807.8,0.405504]
[1763992957508,6.6492918,2808.9,2808.1,0.1154]
[1763992957707,1.44029411,2809.2,2808.1,0.1154]
[1763992957908,0.1889,2808.9,2808.1,0.2154]
[1763992958222,0.1889,2808.9,2808.1,0.1154]
[1763992958723,0.1889,2808.9,2808.1,0.2154]
[1763992958925,0.95459411,2809.2,2808.2,0.4651]
[1763992958926,0.229,2809.2,2808.2,0.4651]
[1763992959087,0.229,2809.2,2808.3,0.1]
[1763992959288,0.229,2809.2,2808.4,0.1]
[1763992959620,0.7147,2809.2,2808.1,0.1154]
[1763992959824,0.72559411,2809.0,2808.1,0.1154]
[1763992960011,0.72559411,2809.0,2808.1,0.2154]
[1763992960317,0.229,2809.2,2808.1,0.5805]
[1763992960508,0.229,2809.2,2808.4,0.1]
[1763992960682,0.229,2809.2,2808.3,0.1]
[1763992960888,0.7147,2809.2,2808.3,0.1]
[1763992961390,0.4857,2809.1,2808.1,0.1154]
[1763992962021,0.4857,2809.1,2808.1,0.2154]
[1763992962197,0.4857,2809.1,2808.2,0.1]
[1763992962400,0.4857,2809.1,2808.4,0.1]
[1763992962747,1.61125585,2808.5,2807.3,0.4651]
[1763992962890,1.70791435,2808.4,2807.4,0.1]
[1763992963211,0.75332024,2808.3,2807.4,0.1]
[1763992963401,0.75332024,2808.3,2807.3,0.4651]
[1763992963402,0.75332024,2808.2,2807.3,0.4651]
[1763992963599,0.75332024,2808.2,2808.0,0.001]
[1763992964225,1.72320217,2808.1,2808.0,0.001]
[1763992964411,0.75600217,2808.1,2808.0,0.001]
[1763992964613,1.72320217,2808.1,2808.0,0.001]
[1763992964838,0.75600217,2808.1,2808.0,0.001]
[1763992966039,0.75600217,2808.2,2808.0,0.9312]
[1763992966242,0.94085585,2808.5,2808.1,0.5805]
[1763992966542,0.7582961,2808.4,2808.1,0.5805]
[1763992966745,0.7582961,2808.3,2808.2,0.1]
[1763992966926,0.94085585,2808.7,2808.2,0.1]
[1763992967241,0.75858447,2808.6,2808.5,0.1]
[1763992967433,0.94085585,2809.0,2808.3,0.4651]
[1763992967638,0.75896232,2808.9,2808.6,0.1]
[1763992967845,0.95459411,2809.3,2808.7,0.1]
[1763992967846,0.75896232,2808.8,2808.7,0.1]
[1763992968140,0.94085585,2809.2,2808.8,0.1]
[1763992968328,0.75932389,2809.1,2808.8,0.1]
[1763992968562,0.75932389,2809.0,2808.8,0.1]
[1763992968709,0.75932389,2808.9,2808.8,0.1]
[1763992969127,0.75932389,2808.9,2808.8,1.0292]
[1763992969328,0.94085585,2809.3,2808.8,1.0292]
[1763992969543,0.75968801,2809.2,2809.0,0.1]
[1763992969838,0.75968801,2809.1,2808.9,0.4651]
[1763992970044,0.75968801,2809.0,2808.9,0.5651]
[1763992970647,0.75968801,2809.0,2808.9,1.1469]
[1763992971540,0.75968801,2809.0,2808.4,3.56072888]
[1763992971541,0.75968801,2809.0,2808.4,0.4651]
[1763992971728,0.94085585,2809.3,2808.9,0.4651]
[1763992971928,0.75988384,2809.2,2808.9,0.5651]
[1763992972129,0.94085585,2809.3,2808.9,1.0302]
[1763992972130,0.75988384,2809.1,2808.9,1.0302]
[1763992972337,0.7598009,2809.0,2808.9,1.0302]
[1763992972540,0.7598009,2809.0,2808.8,0.1]
[1763992972746,0.94285585,2809.4,2808.9,0.4651]
[1763992973059,0.75974511,2809.3,2808.9,0.9302]
[1763992973223,0.75974511,2809.2,2808.9,0.9302]
[1763992973425,0.50974511,2809.1,2808.9,0.4651]
[1763992973625,0.002,2809.4,2808.9,0.4651]
[1763992973827,0.002,2809.4,2808.1,0.5805]
[1763992973828,0.4565,2809.3,2808.1,0.5805]
[1763992974053,1.62635585,2809.3,2808.1,0.5805]
[1763992974226,0.94085585,2809.2,2808.1,0.6805]
[1763992974543,1.39735585,2809.2,2808.1,0.6805]
[1763992974854,0.94085585,2809.2,2808.1,0.5805]
[1763992975062,0.4565,2809.1,2808.3,0.1]
[1763992975261,1.39735585,2809.1,2808.1,0.6805]
[1763992975456,1.39735585,2809.1,2808.2,0.1]
[1763992976166,0.4565,2809.0,2808.1,0.1154]
[1763992976465,0.94085585,2808.8,2808.1,0.1154]
[1763992977257,1.12415585,2808.9,2808.1,0.1154]
[1763992978237,0.33055962,2808.8,2808.1,0.1154]
[1763992978729,0.78705962,2808.8,2808.1,0.1154]
[1763992978926,0.4565,2808.8,2808.1,0.1154]
[1763992979800,2.11854577,2809.3,2808.2,0.4659]
[1763992979801,1.16985585,2809.3,2808.2,0.4659]
[1763992979947,0.33075717,2809.2,2808.7,0.4659]
[1763992980273,1.27161302,2809.2,2808.2,0.5659]
[1763992980445,1.27161302,2809.1,2808.2,0.5659]
[1763992980645,0.94085585,2809.2,2808.2,0.5659]
[1763992980863,0.3309511,2809.1,2808.3,0.1]
[1763992981181,1.27180695,2809.1,2808.2,0.4659]
[1763992981385,0.94085585,2809.2,2808.4,0.1]
[1763992981683,0.33102454,2809.1,2808.4,0.1]
[1763992981890,0.33102454,2809.2,2808.4,0.1]
[1763992982184,0.33102454,2809.2,2808.2,0.4659]
[1763992982185,0.33102454,2809.2,2808.6,0.1]